Cogmind - Beta 13 @@@ ROGUE MODE // 2024.05.18 @ 14:43:27 Player: AverageDoes Result: Destroyed by G-47 Trooper with Particle Gun Performance ------------- Evolutions (2) 1000 Regions Visited (3) 600 Robots Destroyed (29) 145 Value Destroyed (603) 603 Prototype IDs (4) 80 Alien Tech Used (0) 0 Bonus (0) 0 TOTAL SCORE: 2428 Bonus ------- None Cogmind --------- Core Integrity 0/550 Matter 136/300 Energy 98/100 System Corruption 0% Temperature Cool (18) Movement Core (50) Location -8/Materials Parts ------- > --- POWER (1) -------- (None) > --- PROPULSION (4) --- (None) > --- UTILITY (4) ------ Visual Processing Unit Transport Network Coupler > --- WEAPON (2) ------- (None) > --- INVENTORY (5) ---- ECM Suite Peak State ------------ > --- POWER ------------ Improved Ion Engine > --- PROPULSION ------- Cesium-ion Thruster Cesium-ion Thruster Cesium-ion Thruster Cesium-ion Thruster > --- UTILITY ---------- Visual Processing Unit Signal Interpreter > --- WEAPON ----------- Improved Datajack Improved Datajack > --- INVENTORY -------- Light Assault Rifle [Rating: 23] Favorites ----------- Power Light Ion Engine Engine Light Ion Engine Propulsion Wheel Wheel Wheel Hover Unit Hover Unit Flight Unit Flight Unit Utility Signal Interpreter Device ECM Suite Storage Small Storage Unit Processor Signal Interpreter Weapon Light Assault Rifle Energy Gun Medium Laser Ballistic Gun Light Assault Rifle Special Melee Weapon Improved Datajack Build | -11 -10 -9 -8 ------- Run | Yrd Mat Mat Mat Slots Evolved 4 | . . 2 2 Power . | . . . . Propulsion 2 | . . 1 1 Utility 2 | . . 1 1 Weapon . | . . . . Parts Attached 44 | 6 1 9 28 Power 8 | 1 . 1 6 Engine 8 | 1 . 1 6 Core . | . . . . Reactor . | . . . . Propulsion 13 | 2 . 4 7 Treads . | . . . . Leg . | . . . . Wheel 2 | 2 . . . Hover 2 | . . 2 . Flight 9 | . . 2 7 Utility 8 | 1 1 2 4 Device 4 | . . 1 3 Storage 1 | 1 . . . Processor 3 | . 1 1 1 Hackware . | . . . . Protection . | . . . . Artifact . | . . . . Weapon 15 | 2 . 2 11 Energy Gun 5 | . . 1 4 Energy Cannon . | . . . . Ballistic Gun 7 | 2 . 1 4 Ballistic Cannon . | . . . . Launcher . | . . . . Special Weapon . | . . . . Impact Weapon . | . . . . Slashing Weapon . | . . . . Piercing Weapon . | . . . . Special Melee Weapon 3 | . . . 3 Unidentified Prototypes 2 | . . . 2 Parts Lost 27 | . 1 6 20 Power 6 | . . 1 5 Propulsion 12 | . 1 2 9 Utility 3 | . . 1 2 Weapon 6 | . . 2 4 Highest Loss Streak 9 | . 1 2 9 To Critical Strikes 1 | . . . 1 Average Slot Usage (%) 67 | . 82 61 63 Engine 7 | . 14 4 6 Wheel 6 | . 22 3 . Hover 1 | . . 5 . Flight 6 | . . . 13 Device 5 | . . 7 6 Storage 3 | . 14 2 . Processor 18 | . 3 19 25 Energy Gun 2 | . . 3 2 Ballistic Gun 13 | . 28 13 6 Special Melee Weapon 1 | . . . 2 Naked Turns . | . . . . Heaviest Build 10 | 10 10 10 10 Greatest Support 20 | 20 20 12 20 Greatest Overweight (x) 2 | . . . 2 Average Overweight (x) . | . . . . Largest Inventory Capacity 8 | 8 8 8 5 Average Capacity 6 | 7 8 5 5 Most Carried 5 | 5 1 5 5 Average Carried . | . . . 2 Final Capacity 8 | 8 8 5 5 Final Carried 5 | . . 5 1 Class Distribution -------------------- 78% | Mutant 16% | Scavenger-Mutant 5% | Sprinter Dominant Class ---------------- Mutant | -10/Materials Mutant | -9/Materials Scavenger-Mutant | -8/Materials Resources | -11 -10 -9 -8 ----------- Run | Yrd Mat Mat Mat Matter Collected 588 | 192 100 82 214 Remotely . | . . . . Salvage Created 924 | . 235 118 571 Parts 63 | . 12 9 42 Haulers Intercepted 2 | . . . 2 Recyclers Shooed 2 | . 1 . 1 Parts Field Recycled . | . . . . Retrieved Matter . | . . . . Parts Self-Destructed . | . . . . Prevented . | . . . . Kills | -11 -10 -9 -8 ------- Run | Yrd Mat Mat Mat Combat Hostiles Destroyed 20 | . 5 3 12 Guns 20 | . 5 3 12 Classes Destroyed 8 | . 2 2 4 Worker 1 | . . . 1 Hauler 2 | . . . 2 Recycler 2 | . . . 2 Watcher 4 | . 1 2 1 Swarmer 11 | . . 2 9 Grunt 5 | . 5 . . Sentry 3 | . . 1 2 Hunter 1 | . . . 1 Best Kill Streak 4 | . 2 2 4 Combat Bots Only 3 | . 2 2 3 Max Kills in Single Turn 2 | . 2 1 1 Gunslinging 1 | . 1 . . Exploded . | . . . . Melee . | . . . . Uniques/NPCs Destroyed . | . . . . Combat | -11 -10 -9 -8 -------- Run | Yrd Mat Mat Mat Hostile Shots Fired 275 | . 33 50 192 Missed 82 | . 10 13 59 Damage Taken 2083 | . 293 392 1398 Core 820 | . 72 189 559 Absorbed by Shields . | . . . . Regen/Repaired (Parts) 27 | . . 27 . Core Remaining (%) 74 | 100 71 52 . Volleys Fired 156 | . 34 26 96 Largest 2 | . 2 2 2 Hottest 73 | . 40 65 73 Shots Fired 218 | . 68 41 109 Gun 218 | . 68 41 109 Cannon . | . . . . Launcher . | . . . . Special . | . . . . Kinetic 182 | . 68 38 76 Thermal 33 | . . . 33 Explosive . | . . . . Electromagnetic 3 | . . 3 . Robot Hit Streak 8 | . 4 8 6 Robot Miss Streak 6 | . 3 5 6 Penetration Max . | . . . . Secondary Targets 3 | . 1 . 2 Max Gunslinging Chain 1 | . 1 . 1 Shots Hit Robots 140 | . 39 25 76 Core Hits 58 | . 18 11 29 Critical Kills . | . . . . Critical Parts Destroyed . | . . . . Critical Strikes 1 | . . . 1 Burn 1 | . . . 1 Melee Attacks 20 | . . . 20 Impact . | . . . . Slashing . | . . . . Piercing . | . . . . Sneak Attacks . | . . . . Combat Hostiles . | . . . . Follow-up Attacks . | . . . . Damage Inflicted 1339 | . 325 244 770 Guns 1339 | . 325 244 770 Cannons . | . . . . Explosions . | . . . . Melee . | . . . . Ramming . | . . . . Kinetic 1112 | . 325 244 543 Thermal 227 | . . . 227 Explosive . | . . . . Electromagnetic . | . . . . Impact . | . . . . Slashing . | . . . . Piercing . | . . . . Highest Corruption . | . . . . Average Corruption . | . . . . Corruption Purged . | . . . . Corruption Blocked . | . . . . Overload Shots . | . . . . Overflow Damage . | . . . . Projectiles . | . . . . Explosions . | . . . . Melee . | . . . . Knockbacks . | . . . . Impact . | . . . . Kinetic . | . . . . Secondary . | . . . . Self-Inflicted Damage . | . . . . Shots . | . . . . Rammed 1 | . . . 1 Targets Rammed 1 | . . . 1 Kicked . | . . . . Crushed . | . . . . Highest Temperature 44 | . 18 10 44 Average Temperature 10 | . 8 6 11 Received Heat Transfer 573 | . 162 42 369 Siege Activations . | . . . . Robots Corrupted . | . . . . Combat Hostiles . | . . . . Parts Fried . | . . . . Impact Corruptions . | . . . . Robots Melted . | . . . . Combat Hostiles . | . . . . Parts Melted 1 | . . . 1 Heat Transferred 740 | . . . 740 Parts Sabotaged . | . . . . Parts Stolen . | . . . . Parts Stripped . | . . . . Power Chain Reactions . | . . . . Alert | -11 -10 -9 -8 ------- Run | Yrd Mat Mat Mat Peak Influence 414 | . 207 226 414 Initial 87 | . . 87 84 Average 123 | . 100 153 236 Maximum Alert Level 2 | . 1 1 2 Low Security (%) 77 | 100 98 82 40 Level 1 21 | . 1 17 53 Level 2 1 | . . . 5 Level 3 . | . . . . Level 4 . | . . . . Level 5 . | . . . . High Security . | . . . . Max Security . | . . . . Squads Dispatched 4 | . 1 2 1 Investigation 1 | . 1 . . Extermination . | . . . . Reinforcement 2 | . . 2 . Assault . | . . . . Garrison 1 | . . . 1 Intercept . | . . . . Searches Triggered . | . . . . Construction Impeded . | . . . . Haulers Reinforced . | . . . . Active Scanning Responses . | . . . . Cargo Convoy Interrupts . | . . . . Stealth | -11 -10 -9 -8 --------- Run | Yrd Mat Mat Mat Distress Signals 3 | . . 1 2 Communications Jammed . | . . . . Distress Signals . | . . . . Times Spotted 45 | . 12 12 21 Peak Tracking Total 5 | . 5 5 4 Tactical Retreats 3 | . 1 1 1 Traps | -11 -10 -9 -8 ------- Run | Yrd Mat Mat Mat Traps Triggered . | . . . . Indirectly . | . . . . Trap Hack Attempts . | . . . . Triggered . | . . . . Disarmed . | . . . . Reprogrammed . | . . . . Reused . | . . . . Traps Extracted . | . . . . Installed . | . . . . Triggered . | . . . . Machines | -11 -10 -9 -8 ---------- Run | Yrd Mat Mat Mat Machines Disabled 3 | . . . 3 Max in Single Turn 1 | . . . 1 Machines Repaired . | . . . . Machines Dismantled . | . . . . Machines Sabotaged . | . . . . Overloaded Fab Kills . | . . . . Hacking | -11 -10 -9 -8 --------- Run | Yrd Mat Mat Mat Machines Accessed 10 | . 4 4 2 Terminals 6 | . 2 2 2 Fabricators . | . . . . Repair Stations 2 | . 1 1 . Recycling Units 2 | . 1 1 . Scanalyzers . | . . . . Garrison Access . | . . . . Total Hacks 34 | . 13 10 11 Successful 21 | . 7 7 7 Failed 13 | . 6 3 4 Catastrophic 1 | . 1 . . Database Lockouts . | . . . . Manual . | . . . . Terminals 23 | . 7 5 11 Fabricators . | . . . . Repair Stations 5 | . 2 3 . Recycling Units 6 | . 4 2 . Scanalyzers . | . . . . Garrison Access . | . . . . Terminal Hacks 14 | . 4 3 7 Record 5 | . 1 . 4 Prototype ID Bank 1 | . . 1 . Alert Level 1 | . 1 . . Dispatch Records 1 | . . . 1 Maintenance Status 1 | . . . 1 Transport Status 1 | . . . 1 Hauler Manifests 1 | . . 1 . Registered Components 2 | . 1 1 . Zone Layout 1 | . 1 . . Fabricator Hacks . | . . . . Repair Station Hacks 2 | . . 2 . Scan Component 1 | . . 1 . Repair 1 | . . 1 . Recycling Unit Hacks 5 | . 3 2 . Process 1 | . 1 . . Report Inventory 2 | . 1 1 . Retrieve Matter 1 | . 1 . . Retrieve Components 1 | . . 1 . Scanalyzer . | . . . . Garrison Access Hacks . | . . . . Unauthorized Hacks . | . . . . Terminals . | . . . . Fabricators . | . . . . Repair Stations . | . . . . Recycling Units . | . . . . Scanalyzers . | . . . . Garrison Access . | . . . . Data Cores Recovered . | . . . . Used . | . . . . Hacking Detections 8 | . 3 4 1 Full Trace Events 2 | . 2 . . Feedback Events . | . . . . Feedback Blocked . | . . . . Robot Schematics Acquired . | . . . . Robots Built . | . . . . Authchips . | . . . . Time . | . . . . Total Robot Build Rating . | . . . . Part Schematics Acquired . | . . . . Parts Built . | . . . . Authchips . | . . . . Time . | . . . . Total Part Build Rating . | . . . . Parts Repaired 1 | . . 1 . Time 26 | . . 26 . Parts Recycled . | . . . . Recycled Matter 41 | . 41 . . Retrieved Matter 41 | . 41 . . Retrieved Components 1 | . . 1 . Parts Scanalyzed . | . . . . Part Schematics Acquired . | . . . . Parts Damaged . | . . . . Bothacking | -11 -10 -9 -8 ------------ Run | Yrd Mat Mat Mat Used RIF Installer . | . . . . Robots Hacked 3 | . . . 3 Non-combat 1 | . . . 1 Combat 2 | . . . 2 Robot Hacks Applied 12 | . . . 12 parse_system 11 | . . . 11 no_distress 1 | . . . 1 Relay Couplers Released . | . . . . Fabnet Peak Effective % . | . . . . Robots Rewired . | . . . . Allies Hacked . | . . . . Hacks Repelled . | . . . . Allies | -11 -10 -9 -8 -------- Run | Yrd Mat Mat Mat Total Allies . | . . . . Largest Group . | . . . . Highest-Rated Group . | . . . . Highest-Rated Ally . | . . . . Total Orders . | . . . . Ally Attacks . | . . . . Total Damage . | . . . . Kills . | . . . . Allies Corrupted . | . . . . Allies Melted . | . . . . Intel | -11 -10 -9 -8 ------- Run | Yrd Mat Mat Mat Robot Analysis Total . | . . . . Derelict Logs Recovered . | . . . . Drone Launches . | . . . . Drone Recoveries . | . . . . Exploration | -11 -10 -9 -8 ------------- Run | Yrd Mat Mat Mat Turns Passed 1509 | 468 221 354 466 Spaces Moved 960 | 94 163 363 340 Core 102 | 26 . 42 34 Treads . | . . . . Legs . | . . . . Wheels 308 | 68 163 77 . Hover 231 | . . 231 . Flight 319 | . . 13 306 Fastest Speed 26 | 50 80 32 26 Average Speed 62 | 71 80 62 52 Slowest Speed 150 | 80 80 80 150 Overloaded Moves . | . . . . Propulsion Burnouts . | . . . . Robots Hopped . | . . . . Cave-ins Triggered . | . . . . Exploration Rate (%) 27 | 11 34 34 32 Regions Visited 3 Branch Regions . Pre-discovered Areas . | . . . . Known Exits Taken 2 | . 1 1 . Unknown Exits Taken 1 | 1 . . . Scrap Searched . | . . . . Spaces Dug . | . . . . Terrain Destroyed . | . . . . Melee . | . . . . Projectile . | . . . . AOE . | . . . . Terrain Rammed . | . . . . Walls Destroyed . | . . . . Machines Disabled . | . . . . Actions | -11 -10 -9 -8 --------- Run | Yrd Mat Mat Mat Total 1677 | 494 198 456 529 Wait 450 | 389 . 44 17 Move 957 | 93 162 362 340 Hop . | . . . . Pick Up 35 | 6 1 12 16 Fast Attach . | . . . . Attach 41 | 6 1 8 26 Detach 10 | . . 2 8 Swap 3 | . . 1 2 Drop 4 | . . 1 3 Fire 156 | . 34 26 96 Melee 20 | . . . 20 Ram 1 | . . . 1 Kick . | . . . . Crush . | . . . . Escape Stasis . | . . . . Rewire . | . . . . Trap . | . . . . Miscellaneous . | . . . . Route ------- -11/Scrapyard -10/Materials -9/Materials -8/Materials History --------- Turn | Location | Event 5 | -11/Scrapyard | Discovered new exit (range 15) 469 | -11/Scrapyard | Entered Materials 470 | -10/Materials | Build established: Mutant 678 | -10/Materials | Discovered new exit (range 12) 689 | -10/Materials | Identified exit to Materials 690 | -10/Materials | Entered another Materials area 690 | -9/Materials | Evolved 2 slots: Propulsion x1, Utility x1 874 | -9/Materials | Repaired Hover Unit 1026 | -9/Materials | Discovered new exit (range 18) 1044 | -9/Materials | Identified exit to Materials 1044 | -9/Materials | Entered another Materials area 1044 | -8/Materials | Evolved 2 slots: Propulsion x1, Utility x1 1173 | -8/Materials | Core integrity fell below 50% 1188 | -8/Materials | Lost 4 parts (1p2n1w) 1417 | -8/Materials | Garrison activated, responded to threat 1426 | -8/Materials | Lost 3 parts (1p2n) 1477 | -8/Materials | Core integrity fell below 20% 1510 | -8/Materials | Destroyed by G-47 Trooper with Particle Gun Last Messages --------------- Jacked G-47 Trooper... R-06 Scavenger collects Gauss Rifle. Jacked G-47 Trooper... >>parse_system Reading system data... Jacked G-47 Trooper... >>parse_system Reading system data... Jacked G-47 Trooper... >>parse_system Reading system data... Jacked G-47 Trooper... >>parse_system Reading system data... Imp. Datajack destroyed. Slammed into G-47 Trooper. Atomic Centrifuge disabled. Imp. Sensor Array destroyed. R-06 Scavenger collects Prototype Energy Gun. Cld. Ion Engine destroyed. Map ----- +----------------------------------------------------+ | ?????????????????????????????????????????????????? | | ?????????????????????????????????????????????????? | | ?????????????????????????????? ????????????????? | | ?????????????????????????????? ????????????????? | | ???????????????#########+##### ????????????????? | | ???????????????# ? ????????????????? | | ??????????????? ? ????????????????? | | ???????????????# [ ? ????????????????? | | ???????????????# ? ????????????????? | | ???????????????# ????????????????? | | ???????????????# """ """ """ #???????????????? | | ???????????????#*%""" """ """ #######?????????? | | ???????????????#%= "" """ """ # #?????????? | | ???????????????#* # #?????????? | | ?????#?????????# [[ # #?????????? | | ?????# ???????## """ """ """ # ########### | | ?????# ???????# """ """ """ # ## | | ?????# ??????# "" """ """w # ?# """ | | ?????# !??????# %###+#### """"" | | ?????? ?????# = [ # """"" [ | | +#####? ?????# """ """ """ ! + """"" | | +?? ????# """ """ """ # """ | | ####+##### """ """ "" [ ## | | % =%= ## | | u g ########### | | @ g #?????????? | | ! ###+######+######+#+###????????? | | # ## # #????????? | | # ## #= """ #????????? | | "" """ # """ !## # """ !#????????? | | """ """ # """ ##[ # """ #????????? | | ## "" """ # """ ## # #????????? | | ?# """ """ # ## # """ #????????? | | ?# *%""" """ ######### # """ #????????? | | ?# *! #???????# [# """ #????????? | | ?#= #???????# # !#????????? | | ?#!%[""" """ #???????###############????????? | | ?# """ """ #??????????????????????????????? | | ?# = """ %""" #??????????????????????????????? | | ?# "" """ ##############?????????????????? | | ?# "" """ # [ #?????????????????? | | ?# # #?????????????????? | | ?# % # "" #?????????????????? | | ?# !% ###+########## + / """#?????????????????? | | ?###+#### !#??????# # S"#?????????????????? | | ?? [[ ?# % ######## # #?????????????????? | | "S # [# [ # ########?????????????????? | | """ [ # # # #?""" #?????????????????? | | "" # "" # # # "Y" [#?????????????????? | | # "T # # # #?????????????????? | +----------------------------------------------------+ Best States ------------- Heat Dissipation 31 Energy Generation 14 Energy Capacity 280 Matter Stores 300 Matter Capacity 300 Sight Range 18 Robot Scan Range 15 Terrain Scan Density 10 ECM Strength 1 Additional Mass Support 6 Evasion (%) 64 Item Schematics ----------------- None Robot Schematics ------------------ None Fabricated ------------ Nothing Alien Tech Used ----------------- None Achievements -------------- None Challenges ------------ None Game ------ Seed ScatterRainbowFlail Manual? 0 Play Time 00:31:23 Cumulative 2.9 hours Start 2024.05.18 @ 14:13:43 End 2024.05.18 @ 14:43:27 Sessions 1 Manual Loads 0 Difficulty Rogue Special Mode None Game No. 6 Rogue 6 Adventurer 0 Explorer 0 Win Type - Total 0 Types 0/0/0/0/0/0/0/0/0 Lore% 3 Gallery% 8 Achievement% 8 Wizard Run 0 Options --------- Layout 1 ASCII 0 Keyboard 0 Movement Mouse Keybinds 0 Fullscreen 1 Font 32/SmallcapsGlow Map View 50x35 Zoom Use 0% Tactical HUD 0 Map Filters NONE Filters NONE Steam 1 RUN: 81240187-c3fd-4b1b-a951-4ad420c2d44b